bitfinex/quotes_BTCUSD_20241028
["timestamp","ask_amount","ask_price","bid_price","bid_amount"]
[1730085911686,0.03310141,67966.0,67965.0,0.54597122]
[1730085912171,0.03310141,67966.0,67965.0,0.54697122]
[1730085912777,0.03310577,67966.0,67965.0,0.54697122]
[1730085916506,0.0331164,67966.0,67965.0,0.54697122]
[1730085917905,0.0331164,67966.0,67965.0,1.03042802]
[1730085918112,0.019311,67966.0,67965.0,0.8545581]
[1730085918302,0.019311,67966.0,67965.0,0.81057854]
[1730085918521,0.019311,67966.0,67965.0,0.78474057]
[1730085918736,0.019311,67966.0,67965.0,0.78374057]
[1730085918964,0.019311,67966.0,67965.0,0.78474057]
[1730085919177,0.019311,67966.0,67965.0,0.70894057]
[1730085919631,0.019311,67966.0,67965.0,0.70594057]
[1730085919838,0.019311,67966.0,67965.0,0.70694057]
[1730085920046,0.019311,67966.0,67965.0,0.70894057]
[1730085920248,0.019311,67966.0,67965.0,0.70694057]
[1730085920701,0.019311,67966.0,67965.0,0.80074789]
[1730085920904,0.019311,67966.0,67965.0,0.88644789]
[1730085921108,0.019311,67966.0,67965.0,1.04854653]
[1730085921527,0.019311,67966.0,67965.0,0.98257718]
[1730085921734,0.019311,67966.0,67965.0,0.99257718]
[1730085922152,0.019311,67966.0,67965.0,1.08053631]
[1730085922363,0.019311,67966.0,67965.0,0.99257718]
[1730085922766,0.019311,67966.0,67965.0,1.00379724]
[1730085922969,0.019311,67966.0,67965.0,1.09175637]
[1730085923187,0.019311,67966.0,67965.0,1.04454481]
[1730085923393,0.019311,67966.0,67965.0,1.04954481]
[1730085923819,0.019311,67966.0,67965.0,1.04951064]
[1730085924480,0.019311,67966.0,67965.0,1.09156352]
[1730085926133,0.019311,67966.0,67965.0,1.09153925]
[1730085927453,0.019311,67966.0,67965.0,1.09353925]
[1730085929409,0.019311,67966.0,67965.0,1.09436125]
[1730085930476,0.019311,67966.0,67965.0,1.0045655]
[1730085935531,0.019311,67966.0,67965.0,1.00448423]
[1730085935739,0.019311,67966.0,67965.0,1.07029676]
[1730085943332,0.019311,67966.0,67965.0,1.20373795]
[1730085943573,0.019311,67966.0,67965.0,1.00448423]
[1730085943989,0.019311,67966.0,67965.0,1.09223595]
[1730085945221,0.01925642,67966.0,67965.0,1.09223595]
[1730085945446,0.01925642,67966.0,67965.0,1.15988673]
[1730085945842,0.01925642,67966.0,67965.0,1.05019708]
[1730085946306,0.01925642,67966.0,67965.0,1.04819708]
[1730085946717,0.01925642,67966.0,67965.0,1.05019708]
[1730085946935,0.01925642,67966.0,67965.0,1.04919708]
[1730085947328,0.01925642,67966.0,67965.0,1.05119708]
[1730085948563,0.01925642,67966.0,67965.0,1.16084356]
[1730085948564,4.2e-07,67966.0,67965.0,1.16084356]
[1730085949782,4.2e-07,67966.0,67965.0,1.16076808]
[1730085950241,4.2e-07,67966.0,67965.0,1.19024808]
[1730085950477,4.2e-07,67966.0,67965.0,1.16076808]
[1730085951627,4.2e-07,67966.0,67965.0,1.38261756]
[1730085951833,0.001668,67980.0,67979.0,0.01070409]
[1730085952077,0.001668,67980.0,67979.0,0.54894122]
[1730085952078,0.00383007,67980.0,67979.0,0.54894122]
[1730085952294,0.001668,67980.0,67979.0,0.54894122]
[1730085952501,0.00383007,67980.0,67979.0,0.54894122]
[1730085952668,0.001668,67980.0,67979.0,0.54894122]
[1730085953461,0.001668,67980.0,67979.0,0.55094122]
[1730085954149,0.001668,67980.0,67979.0,0.54894122]
[1730085954572,0.001668,67980.0,67979.0,0.55094122]
[1730085959880,0.001668,67980.0,67979.0,0.56210892]
[1730085973638,0.001668,67980.0,67979.0,0.65750892]
[1730085980574,0.001668,67980.0,67979.0,0.70136912]
[1730085980782,0.001668,67980.0,67979.0,0.88520155]
[1730085981025,0.001668,67980.0,67979.0,0.86513358]
[1730085981231,0.001668,67980.0,67979.0,0.95285399]
[1730085982024,0.001668,67980.0,67979.0,1.04966131]
[1730085982593,0.001668,67980.0,67979.0,1.05966131]
[1730085983862,0.001668,67980.0,67979.0,1.05961628]
[1730085984939,0.001668,67980.0,67979.0,1.13831628]
[1730085985609,0.001668,67980.0,67979.0,0.95470164]
[1730085985814,0.001668,67980.0,67979.0,1.04650896]
[1730085988273,0.001668,67980.0,67979.0,0.86699829]
[1730085988479,0.001668,67980.0,67979.0,1.04652273]
[1730085989088,0.001668,67980.0,67979.0,0.87601541]
[1730085989442,0.001668,67980.0,67979.0,0.96782503]
[1730085990405,0.001668,67980.0,67979.0,0.83438327]
[1730085990839,0.001668,67980.0,67979.0,0.83442068]
[1730085991272,0.001668,67980.0,67979.0,0.92214472]
[1730085991446,0.001668,67980.0,67979.0,0.83442068]
[1730085991850,0.001668,67980.0,67979.0,0.88011766]
[1730085992270,0.001668,67980.0,67979.0,0.83442068]
[1730085992500,0.001668,67980.0,67979.0,0.92215007]
[1730085998097,0.001668,67980.0,67979.0,0.82675007]
[1730086000524,0.001668,67980.0,67979.0,0.82175007]
[1730086001447,0.001668,67980.0,67979.0,0.81675007]
[1730086008528,0.001668,67980.0,67979.0,0.81672908]
[1730086009004,0.001668,67980.0,67979.0,0.62104566]
[1730086009225,0.177968,67980.0,67979.0,0.4591339]
[1730086009409,0.177968,67980.0,67979.0,0.55094122]
[1730086009608,0.19176744,67980.0,67979.0,0.55094122]
[1730086009999,0.19176744,67980.0,67979.0,0.54894122]
[1730086011945,0.19176744,67980.0,67979.0,0.55094122]
[1730086012329,0.19176744,67980.0,67979.0,0.54894122]
[1730086012797,0.19176744,67980.0,67979.0,0.55094122]
[1730086013422,0.177968,67980.0,67979.0,0.55094122]
[1730086016372,0.177968,67980.0,67979.0,0.52794122]
[1730086017732,0.177968,67980.0,67979.0,0.52594122]
[1730086017945,0.177968,67980.0,67979.0,0.52794122]
[1730086018564,0.177968,67980.0,67979.0,0.4361339]
[1730086018565,0.19175759,67980.0,67979.0,0.4361339]
[1730086019825,0.177968,67980.0,67979.0,0.4361339]
[1730086020032,0.19175601,67980.0,67979.0,0.4361339]
[1730086024342,0.19175601,67980.0,67979.0,0.4341339]
[1730086024546,0.19175601,67980.0,67979.0,0.4361339]
[1730086025679,0.19175601,67980.0,67979.0,0.4381339]
[1730086026814,0.19175601,67980.0,67979.0,0.3281339]
[1730086027034,0.19175601,67980.0,67979.0,0.3331339]
[1730086027264,0.19175601,67980.0,67979.0,0.3291339]
[1730086027477,0.19575601,67980.0,67979.0,0.32842981]
[1730086027704,0.20953506,67980.0,67979.0,0.3291339]
[1730086027913,0.20553506,67980.0,67979.0,0.3291339]
[1730086028352,0.21253506,67980.0,67979.0,0.3301339]
[1730086028774,0.19874504,67980.0,67979.0,0.3301339]
[1730086028989,0.21252208,67980.0,67979.0,0.3301339]
[1730086029431,0.21251914,67980.0,67979.0,0.3301339]
[1730086029865,0.19874357,67980.0,67979.0,0.3301339]
[1730086030317,0.21251912,67980.0,67979.0,0.3251339]
[1730086030495,0.19874357,67980.0,67979.0,0.3251339]
[1730086030928,0.21251835,67980.0,67979.0,0.3251339]
[1730086031365,0.22353663,67980.0,67979.0,0.026822]
[1730086032307,0.37063863,67980.0,67979.0,0.026822]
[1730086032521,0.22353663,67980.0,67979.0,0.026822]
[1730086033154,0.20976047,67980.0,67979.0,0.026822]
[1730086033385,0.2235341,67980.0,67979.0,0.026822]
[1730086034043,0.3706361,67980.0,67979.0,0.026822]
[1730086036290,0.39266499,67980.0,67979.0,0.026822]
[1730086036743,0.33207,67980.0,67979.0,0.026822]
[1730086036957,0.39265492,67980.0,67979.0,0.026822]
[1730086038325,0.48446224,67980.0,67979.0,0.026822]
[1730086039706,0.48446224,67980.0,67979.0,0.001]
[1730086040578,0.48446118,67980.0,67979.0,0.001]
[1730086040993,0.50648995,67980.0,67979.0,0.001]
[1730086041435,0.41468263,67980.0,67979.0,0.001]
[1730086041650,0.26758063,67980.0,67979.0,0.001]
[1730086042111,0.24555186,67980.0,67979.0,0.001]
[1730086042336,0.22352098,67980.0,67979.0,0.001]
[1730086044326,0.20975054,67980.0,67979.0,0.001]
[1730086044551,0.21250418,67980.0,67979.0,0.026822]
[1730086044765,0.21250559,67980.0,67979.0,0.026822]
[1730086045458,0.21250559,67980.0,67979.0,0.001]
[1730086047160,0.35960759,67980.0,67979.0,0.001]
[1730086048105,0.35960759,67980.0,67979.0,0.026822]
[1730086048106,0.3596151,67980.0,67979.0,0.026822]
[1730086048512,0.37063795,67980.0,67979.0,0.026822]
[1730086050419,0.39268684,67980.0,67979.0,0.026822]
[1730086050825,0.39468684,67980.0,67979.0,0.026822]
[1730086051186,0.4387082,67980.0,67979.0,0.026822]
[1730086051392,0.41665931,67980.0,67979.0,0.026822]
[1730086051615,0.40968088,67980.0,67979.0,0.025822]
[1730086051824,0.42268088,67980.0,67979.0,0.026822]
[1730086052386,0.42268088,67980.0,67979.0,0.001]
[1730086052597,0.42768088,67980.0,67979.0,0.002]
[1730086053526,0.5174882,67980.0,67979.0,0.002]
[1730086053946,0.42568088,67980.0,67979.0,0.002]
[1730086054836,0.51751075,67980.0,67979.0,0.002]
[1730086055043,0.37040875,67980.0,67973.0,0.022822]
[1730086055247,0.147109,67977.0,67973.0,0.022822]
[1730086055461,0.02756394,67976.0,67973.0,0.022822]
[1730086055672,0.01378197,67975.0,67973.0,0.022822]
[1730086055888,0.02756394,67974.0,67973.0,0.022822]
[1730086056097,0.02756394,67974.0,67972.0,0.001644]
[1730086056311,0.02756394,67973.0,67972.0,0.001644]
[1730086056495,0.03859354,67973.0,67972.0,0.001644]
[1730086057555,0.02756394,67973.0,67972.0,0.001644]
[1730086057947,0.03556394,67973.0,67972.0,0.002644]
[1730086058217,0.03556394,67973.0,67972.0,0.025466]
[1730086058851,0.04156394,67973.0,67972.0,0.026466]
[1730086059084,0.04156394,67973.0,67972.0,0.003644]
[1730086062080,0.04156394,67973.0,67972.0,0.026466]
[1730086066312,0.04156394,67973.0,67972.0,0.003644]
[1730086067427,0.04156394,67973.0,67972.0,0.026466]
[1730086068285,0.18868094,67973.0,67972.0,0.026466]
[1730086068500,0.04156394,67973.0,67972.0,0.026466]
[1730086068913,0.02778197,67973.0,67972.0,0.026466]
[1730086069095,0.04157412,67973.0,67972.0,0.026466]
[1730086070141,0.02778197,67973.0,67972.0,0.026466]
[1730086070352,0.0415741,67973.0,67972.0,0.026466]
[1730086071408,0.1886911,67973.0,67972.0,0.026466]
[1730086071657,0.18869121,67973.0,67972.0,0.026466]
[1730086072079,0.28644483,67973.0,67972.0,0.026466]
[1730086072740,0.29747881,67973.0,67972.0,0.026466]
[1730086073381,0.19972519,67973.0,67972.0,0.026466]
[1730086074649,0.5352568,67973.0,67972.0,0.026466]
[1730086074849,0.50398391,67973.0,67972.0,0.026466]
[1730086075279,0.61928035,67973.0,67972.0,0.026466]
[1730086075538,0.47216335,67973.0,67972.0,0.026466]
[1730086075982,0.55959318,67973.0,67972.0,0.026466]
[1730086077055,0.46578586,67973.0,67972.0,0.026466]
[1730086077266,0.66789873,67973.0,67972.0,0.026466]
[1730086077467,0.55923718,67973.0,67972.0,0.026466]
[1730086077684,0.65850875,67973.0,67972.0,0.003644]
[1730086077886,0.65851165,67973.0,67972.0,0.003644]
[1730086078539,0.65891474,67973.0,67972.0,0.003644]
[1730086079380,0.65891474,67973.0,67972.0,0.026466]
[1730086079816,0.90413497,67973.0,67972.0,0.026466]
[1730086080016,0.79381995,67973.0,67972.0,0.026466]
[1730086080437,0.92619797,67973.0,67972.0,0.003644]
[1730086080655,0.93723821,67973.0,67972.0,0.003644]
[1730086080870,0.92923821,67973.0,67972.0,0.002644]
[1730086081092,0.79086019,67973.0,67972.0,0.001644]
[1730086081522,0.64791873,67973.0,67972.0,0.002644]
[1730086081750,0.7902198,67973.0,67972.0,0.001644]
[1730086082169,0.8012198,67973.0,67972.0,0.002644]
[1730086082389,0.8022198,67973.0,67972.0,0.001644]
[1730086082823,0.93357385,67973.0,67972.0,0.002644]
[1730086083115,0.94757385,67973.0,67972.0,0.002644]
[1730086083319,0.85576653,67973.0,67972.0,0.002644]
[1730086083743,0.72341248,67973.0,67972.0,0.002644]
[1730086084164,0.54217533,67973.0,67972.0,0.002644]
[1730086084373,0.63398265,67973.0,67972.0,0.002644]
[1730086084581,0.62294241,67973.0,67972.0,0.002644]
[1730086085437,0.53113509,67973.0,67972.0,0.002644]
[1730086085648,0.62294241,67973.0,67972.0,0.002644]
[1730086087354,0.62294338,67973.0,67972.0,0.002644]
[1730086088224,0.74610271,67973.0,67972.0,0.002644]
[1730086088442,0.74810271,67973.0,67972.0,0.002644]
[1730086088889,0.72052463,67973.0,67972.0,0.002644]
[1730086089099,0.74808909,67973.0,67972.0,0.002644]
[1730086095626,0.65628177,67973.0,67972.0,0.002644]
[1730086095861,0.74808937,67973.0,67972.0,0.002644]
[1730086100595,0.74923335,67973.0,67972.0,0.002644]
[1730086101251,0.73545112,67973.0,67972.0,0.002644]
[1730086101468,0.74924192,67973.0,67972.0,0.002644]
[1730086103639,0.74724192,67973.0,67972.0,0.002644]
[1730086104248,0.74725321,67973.0,67972.0,0.002644]
[1730086104784,0.62409388,67973.0,67972.0,0.002644]
[1730086105307,0.62610292,67973.0,67972.0,0.002644]
[1730086106354,0.61232041,67973.0,67972.0,0.002644]
[1730086106585,0.62612365,67973.0,67972.0,0.002644]
[1730086110806,0.62545326,67973.0,67972.0,0.002644]
[1730086111281,0.62547426,67973.0,67972.0,0.002644]
[1730086112605,0.21302033,67973.0,67972.0,0.002644]
[1730086112827,0.20872442,67973.0,67972.0,0.266185]
[1730086113067,0.05425904,67973.0,67972.0,0.266185]
[1730086113734,0.04025904,67973.0,67972.0,0.266185]
[1730086114018,0.03325904,67973.0,67972.0,0.265185]
[1730086114438,0.03825904,67973.0,67972.0,0.265185]
[1730086114645,0.03425904,67973.0,67972.0,0.265185]
[1730086114855,0.04225904,67973.0,67972.0,0.265185]
[1730086115091,0.05225904,67973.0,67972.0,0.266185]
[1730086115297,0.04425904,67973.0,67972.0,0.266185]
[1730086116437,0.04425904,67973.0,67972.0,0.119066]
[1730086116669,0.04425904,67973.0,67972.0,0.266185]
[1730086116891,0.05425904,67973.0,67972.0,0.266185]
[1730086117104,0.05425904,67973.0,67972.0,0.025466]
[1730086117603,0.1204298,67973.0,67972.0,0.025466]
[1730086117839,0.86369777,67973.0,67972.0,0.025466]
[1730086118077,0.86369777,67973.0,67972.0,0.002644]
[1730086118078,0.53110364,67973.0,67972.0,0.002644]
[1730086118974,0.54213449,67973.0,67972.0,0.002644]
[1730086119886,0.53110364,67973.0,67972.0,0.002644]
[1730086121025,0.52910364,67973.0,67972.0,0.002644]
[1730086121336,0.53110364,67973.0,67972.0,0.002644]
[1730086121432,0.53108068,67973.0,67972.0,0.002644]
[1730086122798,0.6531834,67973.0,67972.0,0.002644]
[1730086123752,0.53108068,67973.0,67972.0,0.002644]
[1730086123978,0.54211202,67973.0,67972.0,0.002644]
[1730086124207,0.67445354,67973.0,67972.0,0.002644]
[1730086125151,0.67443966,67973.0,67972.0,0.002644]
[1730086126325,0.67443987,67973.0,67972.0,0.002644]
[1730086127701,0.58263255,67973.0,67972.0,0.002644]
[1730086127923,0.67443987,67973.0,67972.0,0.002644]
[1730086128837,0.66340868,67973.0,67972.0,0.002644]
[1730086133051,0.66341032,67973.0,67972.0,0.002644]
[1730086136406,0.64962028,67973.0,67972.0,0.002644]
[1730086136681,0.66341044,67973.0,67972.0,0.002644]
[1730086138222,0.66337904,67973.0,67972.0,0.002644]
[1730086139979,0.64958888,67973.0,67972.0,0.002644]
[1730086140196,0.66338044,67973.0,67972.0,0.002644]
[1730086141123,0.64958958,67973.0,67972.0,0.002644]
[1730086141344,0.66338022,67973.0,67972.0,0.002644]
[1730086144589,0.66138022,67973.0,67972.0,0.002644]
[1730086146094,0.66338022,67973.0,67972.0,0.002644]
[1730086146311,0.53095701,67973.0,67972.0,0.002644]
[1730086146768,0.66338022,67973.0,67972.0,0.002644]
[1730086149001,0.53095701,67973.0,67972.0,0.002644]
[1730086149214,0.51716637,67973.0,67972.0,0.002644]
[1730086149438,0.52823693,67973.0,67972.0,0.002644]
[1730086149643,0.54204909,67973.0,67972.0,0.002644]
[1730086150322,0.42538035,67973.0,67972.0,0.002644]
[1730086150551,0.68384595,67973.0,67972.0,0.002644]
[1730086150779,0.68443609,67973.0,67972.0,0.002644]
[1730086151655,0.63693914,67973.0,67972.0,0.002644]
[1730086151914,0.78744295,67973.0,67972.0,0.002644]
[1730086152136,0.97925027,67973.0,67972.0,0.002644]
[1730086152347,0.88744295,67973.0,67972.0,0.002644]
[1730086152574,0.97925027,67973.0,67972.0,0.002644]
[1730086152794,0.97925027,67973.0,67970.0,0.022822]
[1730086152795,0.20059591,67971.0,67970.0,0.02248555]
[1730086153021,0.69249563,67971.0,67970.0,0.02248555]
[1730086153265,0.69249563,67971.0,67970.0,0.01618964]
[1730086153266,0.68619972,67971.0,67970.0,0.01618964]
[1730086153708,0.68619602,67971.0,67970.0,0.01618964]
[1730086154153,0.1,67970.0,67965.0,0.000822]
[1730086154360,0.23893932,67966.0,67965.0,0.000822]
[1730086154572,0.40834656,67966.0,67965.0,0.000822]
[1730086154782,0.43319704,67966.0,67965.0,0.000822]
[1730086154999,0.41939122,67966.0,67965.0,0.000822]
[1730086155208,0.43319704,67966.0,67965.0,0.000822]
[1730086155456,0.43319704,67966.0,67965.0,0.001822]
[1730086156541,0.44719704,67966.0,67965.0,0.000822]
[1730086156973,0.61170085,67966.0,67965.0,0.001822]
[1730086158095,0.58684563,67966.0,67965.0,0.001822]
[1730086158341,0.61168757,67966.0,67965.0,0.001822]
[1730086158580,0.91321087,67966.0,67965.0,0.001822]
[1730086159019,0.78078757,67966.0,67965.0,0.001822]
[1730086159237,0.7918268,67966.0,67965.0,0.001822]
[1730086160350,0.79074501,67966.0,67965.0,0.001822]
[1730086160576,0.94124882,67966.0,67965.0,0.001822]
[1730086161214,1.13305614,67966.0,67965.0,0.001822]
[1730086161658,1.28198061,67966.0,67965.0,0.01801164]
[1730086161877,1.28197211,67966.0,67965.0,0.01801164]
[1730086162111,1.26797211,67966.0,67965.0,0.01801164]
[1730086162346,1.11904764,67966.0,67965.0,0.01801164]
[1730086162562,1.13304764,67966.0,67965.0,0.01801164]
[1730086162783,1.28197211,67966.0,67965.0,0.01801164]
[1730086163005,1.25397211,67966.0,67965.0,0.01701164]
[1730086163234,0.1,67962.0,67956.0,0.03]
[1730086163454,0.33076564,67957.0,67956.0,0.03]
[1730086163687,0.8481236,67957.0,67956.0,0.03]
[1730086163891,0.147171,67949.0,67947.0,0.03]
[1730086164100,0.13044184,67948.0,67947.0,0.03]
[1730086166131,0.13044184,67948.0,67945.0,0.03]
[1730086166432,0.23898232,67946.0,67945.0,0.03]
[1730086166637,0.13042118,67946.0,67945.0,0.03]
[1730086167564,0.13038666,67946.0,67945.0,0.03]
[1730086167997,0.14038667,67946.0,67945.0,0.03]
[1730086168198,0.14038667,67946.0,67944.0,0.03]
[1730086168444,0.03857935,67945.0,67944.0,0.03]
[1730086169520,0.02479616,67945.0,67944.0,0.03]
[1730086169737,0.0475683,67945.0,67944.0,0.03]
[1730086170201,0.0585683,67945.0,67944.0,0.03]
[1730086170854,0.0585683,67945.0,67944.0,0.17718]
[1730086171286,0.04754878,67945.0,67944.0,0.17718]
[1730086171944,0.04754878,67945.0,67944.0,0.34628]
[1730086173279,0.04754702,67945.0,67944.0,0.34628]
[1730086174335,0.04754698,67945.0,67944.0,0.34628]
[1730086175452,0.03854698,67945.0,67944.0,0.34628]
[1730086175672,0.02754698,67945.0,67944.0,0.34628]
[1730086175878,0.02954698,67945.0,67944.0,0.34628]
[1730086176091,0.03354698,67945.0,67944.0,0.34628]
[1730086176327,0.03854698,67945.0,67944.0,0.34628]
[1730086176545,0.03454698,67945.0,67944.0,0.34628]
[1730086176955,0.04155508,67945.0,67944.0,0.34628]
[1730086177371,0.02777754,67945.0,67944.0,0.34628]
[1730086177571,0.04155707,67945.0,67944.0,0.34628]
[1730086179348,0.04155707,67945.0,67944.0,0.1991]
[1730086179570,0.04155707,67945.0,67944.0,0.1204]
[1730086180989,0.04155707,67945.0,67944.0,0.121222]
[1730086181445,0.02777754,67945.0,67944.0,0.121222]
[1730086182305,0.04156687,67945.0,67944.0,0.121222]
[1730086184261,0.02777754,67945.0,67944.0,0.121222]
[1730086184887,0.08572508,67945.0,67944.0,0.121222]
[1730086185096,0.02777754,67945.0,67944.0,0.121222]
[1730086189275,0.02777754,67945.0,67944.0,0.268402]
[1730086192152,0.02780779,67945.0,67944.0,0.268402]
[1730086197473,0.07190789,67945.0,67944.0,0.268402]
[1730086198329,0.07190789,67945.0,67944.0,0.178002]
[1730086199211,0.02780779,67945.0,67944.0,0.178002]
[1730086199897,0.02780845,67945.0,67944.0,0.178002]
[1730086201206,0.09395861,67945.0,67944.0,0.178002]
[1730086201417,0.02780845,67945.0,67944.0,0.178002]
[1730086201826,0.09403838,67945.0,67944.0,0.178002]
[1730086202717,0.09403848,67945.0,67944.0,0.178002]
[1730086203143,0.02780855,67945.0,67944.0,0.178002]
[1730086203589,0.18448288,67945.0,67944.0,0.178002]
[1730086204254,0.27276677,67945.0,67944.0,0.178002]
[1730086206830,0.25895822,67945.0,67944.0,0.178002]
[1730086207043,0.27276973,67945.0,67944.0,0.178002]
[1730086209172,0.18446315,67945.0,67944.0,0.178002]
[1730086209595,0.25903146,67945.0,67944.0,0.178002]
[1730086209823,0.27284634,67945.0,67944.0,0.178002]
[1730086210065,0.18446652,67945.0,67944.0,0.178002]
[1730086210900,0.17037648,67945.0,67944.0,0.178002]
[1730086211132,0.11619582,67945.0,67944.0,0.178002]
[1730086211625,0.1841914,67945.0,67944.0,0.178002]
[1730086212676,0.1771914,67945.0,67944.0,0.178002]
[1730086212881,0.1701914,67945.0,67944.0,0.178002]
[1730086213091,0.1751914,67945.0,67944.0,0.178002]
[1730086214395,0.1811914,67945.0,67944.0,0.178002]
[1730086214844,0.1751914,67945.0,67944.0,0.178002]
[1730086215103,0.16737648,67945.0,67944.0,0.178002]
[1730086215572,0.18119183,67945.0,67944.0,0.178002]
[1730086216700,0.29166796,67945.0,67944.0,0.178002]
[1730086218224,0.18119183,67945.0,67944.0,0.178002]
[1730086220394,0.29166796,67945.0,67944.0,0.178002]
[1730086220851,0.19224468,67945.0,67944.0,0.178002]
[1730086221087,0.30272081,67945.0,67944.0,0.178002]
[1730086221315,0.19224468,67945.0,67944.0,0.178002]
[1730086221735,0.29168444,67945.0,67944.0,0.178002]
[1730086223295,0.06901431,67945.0,67944.0,0.354802]
[1730086223510,0.02481535,67945.0,67944.0,0.51030581]
[1730086223735,0.02481535,67945.0,67944.0,0.51530581]
[1730086224200,0.02481535,67945.0,67944.0,0.52030581]
[1730086224491,0.01381535,67945.0,67944.0,0.52030581]
[1730086224708,0.01381535,67945.0,67944.0,0.54730581]
[1730086224925,0.21984948,67953.0,67952.0,0.1878]
[1730086225144,0.21984948,67953.0,67952.0,0.60727313]
[1730086225145,0.23365131,67953.0,67952.0,0.60727313]
[1730086225361,0.23365131,67953.0,67952.0,0.61227313]
[1730086225362,0.01380183,67953.0,67952.0,0.61227313]
[1730086225847,0.01380183,67953.0,67952.0,0.70408045]
[1730086226079,0.01380183,67953.0,67952.0,0.61227313]
[1730086227412,0.01478073,67953.0,67952.0,0.61427313]
[1730086227848,0.001,67953.0,67952.0,0.61427313]
[1730086228068,0.01477557,67953.0,67952.0,0.61427313]
[1730086229400,0.01477557,67953.0,67952.0,0.61627313]
[1730086231465,0.001,67953.0,67952.0,0.61627313]
[1730086231671,0.01476568,67953.0,67952.0,0.61627313]
[1730086232093,0.01476568,67953.0,67952.0,0.61427313]
[1730086232554,0.01476568,67953.0,67952.0,0.52246581]
[1730086232786,0.01476568,67953.0,67952.0,0.61427313]
[1730086235238,0.01476568,67953.0,67952.0,0.52446581]
[1730086235468,0.01476568,67953.0,67952.0,0.61627313]
[1730086239823,0.001,67953.0,67952.0,0.61709513]
[1730086240037,0.01475929,67953.0,67952.0,0.61709513]
[1730086241218,0.01475929,67953.0,67952.0,0.61509513]
[1730086241428,0.01475929,67953.0,67952.0,0.52709513]
[1730086241656,0.01475929,67953.0,67952.0,0.44028781]
[1730086242082,0.01475929,67953.0,67952.0,0.43528781]
[1730086242312,0.01475929,67953.0,67952.0,0.189984]
[1730086243226,0.01475929,67953.0,67952.0,0.184984]
[1730086244106,0.01475929,67953.0,67952.0,0.27879132]
[1730086244555,0.02577141,67953.0,67952.0,0.27879132]
[1730086245479,0.02577141,67953.0,67952.0,0.27679132]
[1730086247658,0.02577141,67953.0,67952.0,0.27879132]
[1730086247889,0.02577141,67953.0,67952.0,0.27679132]
[1730086248103,0.02577141,67953.0,67952.0,0.27879132]
[1730086249836,0.02577141,67953.0,67952.0,0.27679132]
[1730086250062,0.02577141,67953.0,67952.0,0.27879132]
[1730086251804,0.01201212,67953.0,67952.0,0.27879132]
[1730086252027,0.02580096,67953.0,67952.0,0.27879132]
[1730086252237,0.0147889,67953.0,67952.0,0.27879132]
[1730086252442,0.03685093,67953.0,67952.0,0.27879132]
[1730086254247,0.03685093,67953.0,67952.0,0.179984]
[1730086255985,0.03685093,67953.0,67952.0,0.184984]
[1730086259305,0.03685093,67953.0,67952.0,0.179984]
[1730086259739,0.03685093,67953.0,67952.0,0.184984]
[1730086260175,0.02584742,67953.0,67952.0,0.184984]
[1730086262450,0.0396523,67953.0,67952.0,0.184984]
[1730086262889,0.03965333,67953.0,67952.0,0.184984]
[1730086264744,0.03965333,67953.0,67952.0,0.186984]
[1730086266799,0.01204436,67953.0,67952.0,0.186984]
[1730086267002,0.03965526,67953.0,67952.0,0.186984]
[1730086268142,0.03965526,67953.0,67952.0,0.184984]
[1730086269750,0.01480545,67953.0,67952.0,0.184984]
[1730086271069,0.01480745,67953.0,67952.0,0.184984]
[1730086271291,0.02585341,67953.0,67952.0,0.184984]
[1730086272860,0.01480829,67953.0,67952.0,0.184984]
[1730086274033,0.01204674,67953.0,67952.0,0.184984]
[1730086274242,0.001,67953.0,67952.0,0.184984]
[1730086274661,0.04515977,67953.0,67952.0,0.184984]
[1730086275163,0.05620657,67953.0,67952.0,0.184984]
[1730086275385,0.05896826,67953.0,67952.0,0.184984]
[1730086275845,0.07277707,67953.0,67952.0,0.184984]
[1730086276052,0.09487118,67953.0,67952.0,0.184984]
[1730086277190,0.04515977,67953.0,67952.0,0.184984]
[1730086277418,0.05620697,67953.0,67952.0,0.184984]
[1730086277877,0.0120472,67953.0,67952.0,0.184984]
[1730086278085,0.001,67953.0,67952.0,0.184984]
[1730086279456,0.01480875,67953.0,67952.0,0.184984]
[1730086279915,0.05896852,67953.0,67952.0,0.184984]
[1730086280568,0.0948715,67953.0,67952.0,0.184984]
[1730086280790,0.05071173,67953.0,67952.0,0.184984]
[1730086281006,0.05071173,67953.0,67952.0,0.186984]
[1730086281903,0.05071173,67953.0,67952.0,0.51898781]
[1730086282127,0.05071173,67953.0,67952.0,0.61079513]
[1730086282867,0.05071173,67953.0,67952.0,0.70760245]
[1730086283325,0.06175999,67953.0,67952.0,0.70760245]
[1730086283546,0.06175999,67953.0,67952.0,0.61579513]
[1730086284216,0.03690275,67953.0,67952.0,0.70760245]
[1730086284665,0.03690275,67953.0,67952.0,0.61579513]
[1730086285344,0.04795157,67953.0,67952.0,0.61579513]
[1730086288137,0.03690936,67953.0,67952.0,0.61579513]
[1730086288344,0.04795839,67953.0,67952.0,0.61579513]
[1730086291004,0.03690936,67953.0,67952.0,0.61579513]
[1730086291442,0.01481129,67953.0,67952.0,0.61579513]
[1730086292739,0.01481129,67953.0,67952.0,0.73060245]
[1730086292985,0.001,67953.0,67952.0,0.73060245]
[1730086293628,0.001644,67965.0,67954.0,0.023]
[1730086293842,0.001644,67965.0,67964.0,0.278836]
[1730086294056,0.02644973,67965.0,67964.0,0.278836]
[1730086295361,0.03344973,67965.0,67964.0,0.278836]
[1730086296606,0.04144973,67965.0,67964.0,0.278836]
[1730086297027,0.04144973,67965.0,67964.0,0.42733981]
[1730086297394,0.04144973,67965.0,67964.0,0.32763981]
[1730086297592,0.07726547,67965.0,67964.0,0.32763981]
[1730086299777,0.07729089,67965.0,67964.0,0.32763981]
[1730086303361,0.05248716,67965.0,67964.0,0.32763981]
[1730086303583,0.0773157,67965.0,67964.0,0.32763981]
[1730086303813,0.0773157,67965.0,67964.0,0.03]
[1730086304022,0.3169497,67965.0,67964.0,0.03]
[1730086304515,0.3926497,67965.0,67964.0,0.03]
[1730086304740,0.41471502,67965.0,67964.0,0.03]
[1730086304947,0.70898402,67965.0,67964.0,0.03]
[1730086305176,0.6869187,67965.0,67964.0,0.03]
[1730086305608,0.70898446,67965.0,67964.0,0.03]
[1730086306354,0.77511771,67965.0,67964.0,0.03]
[1730086306556,0.75305195,67965.0,67964.0,0.03]
[1730086306759,0.6869187,67965.0,67964.0,0.03]